bitfinex-derivatives/quotes_BNBF0:USTF0_20250305
["timestamp","ask_amount","ask_price","bid_price","bid_amount"]
[1741156487227,0.31126563,590.97,590.02,1.25931413]
[1741156487526,0.31126563,590.96,590.02,1.25931413]
[1741156487728,0.31126563,590.95,590.02,1.25931413]
[1741156487923,0.31126563,590.98,590.02,1.25931413]
[1741156488325,0.3384152,590.99,590.02,1.25931413]
[1741156488523,0.31126537,590.98,590.02,1.25931413]
[1741156489122,0.31126537,590.98,590.09,1.25931413]
[1741156490225,0.3384152,590.99,590.09,1.25931413]
[1741156490434,0.31126087,590.98,590.09,1.25931413]
[1741156491331,0.33842665,590.97,590.09,1.25931413]
[1741156491531,0.33842665,590.97,590.15,1.25931413]
[1741156494032,0.33842665,590.97,589.83,0.33908075]
[1741156494429,0.33842665,590.97,589.84,1.76883196]
[1741156495627,0.33842665,590.97,590.05,1.25931413]
[1741156497636,0.33842665,590.97,590.04,1.25931413]
[1741156501142,0.31131989,590.96,590.04,1.25931413]
[1741156501441,0.3384381,590.95,590.04,1.25931413]
[1741156501641,0.31131989,590.94,590.04,1.25931413]
[1741156501841,0.33844956,590.93,590.04,1.25931413]
[1741156502040,0.31131989,590.92,590.04,1.25931413]
[1741156502242,0.33845529,590.92,590.04,1.25931413]
[1741156504244,0.31130637,590.91,590.04,1.25931413]
[1741156504445,0.33845529,590.92,590.04,1.25931413]
[1741156504645,0.31129704,590.91,590.04,1.25931413]
[1741156505246,0.31129704,590.91,589.83,0.33908075]
[1741156505846,0.33846674,590.9,589.83,0.33908075]
[1741156506041,0.31129704,590.89,589.83,0.33908075]
[1741156506247,0.3384782,590.88,589.83,0.33908075]
[1741156506447,0.31129704,590.87,589.83,0.33908075]
[1741156506747,0.64983676,590.86,589.83,0.33908075]
[1741156506943,0.31134711,590.85,589.83,0.33908075]
[1741156507554,0.31134711,590.85,589.96,1.25931413]
[1741156508354,0.33850111,590.84,589.96,1.25931413]
[1741156508547,0.31134711,590.83,589.96,1.25931413]
[1741156508751,0.33851257,590.82,589.96,1.25931413]
[1741156508948,0.31134711,590.81,589.96,1.25931413]
[1741156509152,0.33852403,590.8,589.96,1.25931413]
[1741156509454,0.31134711,590.79,589.96,1.25931413]
[1741156509655,0.33853549,590.78,589.96,1.25931413]
[1741156509855,0.31134711,590.77,589.96,1.25931413]
[1741156510356,0.31134711,590.77,589.83,0.33908075]
[1741156511255,0.31134711,590.77,589.61,1.25931413]
[1741156511256,0.33854695,590.76,589.61,1.25931413]
[1741156511452,0.31134711,590.75,589.61,1.25931413]
[1741156511659,0.33854695,590.76,589.61,1.25931413]
[1741156511952,0.31142715,590.75,589.61,1.25931413]
[1741156512150,0.33855841,590.74,589.61,1.25931413]
[1741156512355,0.31142715,590.73,589.62,1.76944654]
[1741156512554,0.64999129,590.73,589.62,1.76944654]
[1741156512756,0.31142715,590.72,589.62,1.76944654]
[1741156514361,0.31142715,590.72,589.61,1.25931413]
[1741156514555,0.31142715,590.72,589.62,1.76946153]
[1741156515161,0.31142715,590.72,589.74,1.25931413]
[1741156517060,0.31142715,590.72,589.66,1.25931413]
[1741156517863,0.33857561,590.71,589.66,1.25931413]
[1741156518162,0.31142715,590.7,589.66,1.25931413]
[1741156518362,0.33858707,590.69,589.66,1.25931413]
[1741156518562,0.31142715,590.68,589.66,1.25931413]
[1741156519255,0.31142715,590.68,589.62,1.76946153]
[1741156519256,0.33859854,590.67,589.62,1.76946153]
[1741156519462,0.31142715,590.66,589.62,1.76946153]
[1741156519654,0.33861,590.65,589.62,1.76946153]
[1741156519962,0.31142715,590.64,589.62,1.76946153]
[1741156520159,0.33861573,590.64,589.62,1.76946153]
[1741156520363,0.33861573,590.64,589.59,1.25931413]
[1741156521257,0.33861573,590.64,589.15,1.25931413]
[1741156521458,0.33861573,590.64,589.6,1.76926662]
[1741156521660,0.33861573,590.64,589.17,0.33946059]
[1741156523560,0.33861573,590.64,589.34,1.25931413]
[1741156524065,0.33861573,590.64,589.35,0.33935691]
[1741156525065,0.3114808,590.63,589.35,0.33935691]
[1741156526468,0.3114808,590.63,589.47,1.25931413]
[1741156528369,0.3114808,590.63,589.59,1.25931413]
[1741156528568,0.33861573,590.64,589.59,1.25931413]
[1741156528768,0.31146496,590.63,589.59,1.25931413]
[1741156533472,0.31146496,590.63,589.66,1.25931413]
[1741156533869,0.31143482,590.62,589.66,1.25931413]
[1741156534069,0.31143482,590.61,589.66,1.25931413]
[1741156534270,0.31143482,590.63,589.66,1.25931413]
[1741156535671,0.31144076,590.62,589.72,1.25931413]
[1741156535873,0.31144076,590.61,589.72,1.25931413]
[1741156536075,0.31144076,590.63,589.72,1.25931413]
[1741156536276,0.31144076,590.62,589.72,1.25931413]
[1741156536476,0.31144076,590.63,589.72,1.25931413]
[1741156536775,0.31144076,590.62,589.72,1.25931413]
[1741156536973,0.31144076,590.63,589.72,1.25931413]
[1741156537169,0.31144076,590.62,589.72,1.25931413]
[1741156537373,0.31143769,590.61,589.72,1.25931413]
[1741156537575,0.31143769,590.63,589.72,1.25931413]
[1741156537776,0.31143769,590.62,589.72,1.25931413]
[1741156537978,0.31143769,590.61,589.72,1.25931413]
[1741156538180,0.31143769,590.6,589.72,1.25931413]
[1741156538478,0.31143769,590.59,589.72,1.25931413]
[1741156538676,0.31143769,590.58,589.72,1.25931413]
[1741156538873,0.31143769,590.57,589.72,1.25931413]
[1741156539073,0.31143769,590.63,589.72,1.25931413]
[1741156539277,0.31143769,590.62,589.72,1.25931413]
[1741156539577,0.31143769,590.61,589.72,1.25931413]
[1741156539779,0.31143769,590.63,589.72,1.25931413]
[1741156539979,0.33861573,590.64,589.47,1.7695815]
[1741156539980,0.31143769,590.62,589.76,1.25931413]
[1741156540280,0.31143769,590.61,589.76,1.25931413]
[1741156540474,0.31143769,590.63,589.76,1.25931413]
[1741156540774,0.33861573,590.64,589.76,1.25931413]
[1741156540979,0.31144189,590.63,589.76,1.25931413]
[1741156541774,0.33861573,590.64,589.8,1.25931413]
[1741156543775,0.33861573,590.64,589.46,1.25931413]
[1741156545481,0.33861573,590.64,589.47,1.76950652]
[1741156546272,0.31148319,590.63,589.47,1.76950652]
[1741156546478,0.3386272,590.62,589.47,1.76950652]
[1741156546880,0.3386272,590.62,589.73,1.25931413]
[1741156548383,0.3386272,590.62,589.69,1.25931413]
[1741156552889,0.3386272,590.62,589.51,1.76965649]
[1741156553291,0.3386272,590.62,589.26,1.25931413]
[1741156554596,0.3386272,590.62,589.36,1.76952152]
[1741156554793,0.3386272,590.62,589.43,1.25931413]
[1741156555493,0.3386272,590.62,589.44,0.3393051]
[1741156556894,0.3386272,590.62,589.88,1.25931413]
[1741156559392,0.3386272,590.62,589.9,1.25931413]
[1741156560297,4.1756332,591.17,589.9,1.25931413]
[1741156560498,0.3383236,591.15,589.9,1.25931413]
[1741156560696,0.31131572,591.14,589.9,1.25931413]
[1741156561298,0.33834077,591.12,589.97,1.25931413]
[1741156561500,0.31132528,591.11,589.97,1.25931413]
[1741156561797,0.33835794,591.09,589.97,1.25931413]
[1741156561993,0.31132528,591.08,589.97,1.25931413]
[1741156562399,0.33837512,591.06,589.97,1.25931413]
[1741156562599,0.31132528,591.05,589.97,1.25931413]
[1741156563393,0.33838657,591.04,589.97,1.25931413]
[1741156563598,0.31132528,591.03,589.97,1.25931413]
[1741156565304,0.31132528,591.03,589.82,1.25931413]
[1741156565704,0.33840374,591.01,589.82,1.25931413]
[1741156565903,0.31132528,591.0,589.82,1.25931413]
[1741156566097,0.33842092,590.98,589.82,1.25931413]
[1741156566299,0.31137643,590.97,589.82,1.25931413]
[1741156566703,0.33843238,590.96,589.82,1.25931413]
[1741156566905,0.31137643,590.95,589.82,1.25931413]
[1741156567102,0.31137643,590.95,589.69,1.25931413]
[1741156568509,0.33844383,590.94,589.69,1.25931413]
[1741156568711,0.31137643,590.93,589.69,1.25931413]
[1741156568903,0.33845529,590.92,589.69,1.25931413]
[1741156569102,0.31137643,590.91,589.69,1.25931413]
[1741156569404,0.33845529,590.92,589.62,1.25931413]
[1741156569605,0.31139919,590.91,589.62,1.25931413]
[1741156570209,4.14749765,590.91,589.62,1.25931413]
[1741156570409,1.27784445,590.9,589.62,1.25931413]
[1741156570603,0.31139919,590.89,589.62,1.25931413]
[1741156570809,0.31139243,590.88,589.62,1.25931413]
[1741156571010,0.31139243,590.87,589.62,1.25931413]
[1741156571209,0.31139243,590.89,589.62,1.25931413]
[1741156571405,0.3384782,590.88,589.62,1.25931413]
[1741156571606,0.31139243,590.87,589.62,1.25931413]
[1741156571810,0.33848965,590.86,589.62,1.25931413]
[1741156572012,0.31139243,590.85,589.62,1.25931413]
[1741156572210,0.31139243,590.85,589.53,1.27249495]
[1741156572211,0.31139243,590.85,589.64,1.25931413]
[1741156572912,0.33850111,590.84,589.64,1.25931413]
[1741156573114,0.31139243,590.83,589.64,1.25931413]
[1741156573311,0.33851257,590.82,589.64,1.25931413]
[1741156573612,0.31139243,590.81,589.64,1.25931413]
[1741156575307,0.31135059,590.8,589.64,1.25931413]
[1741156575511,0.31135059,590.81,589.64,1.25931413]
[1741156575808,0.31135059,590.8,589.64,1.25931413]
[1741156576012,0.31135059,590.79,589.64,1.25931413]
[1741156576315,0.31135059,590.78,589.64,1.25931413]
[1741156576508,0.33851257,590.82,589.85,1.25931413]
[1741156576809,0.31133584,590.81,589.85,1.25931413]
[1741156579208,0.31133584,590.81,589.84,1.25931413]
[1741156579707,0.31132911,590.8,589.84,1.25931413]
[1741156579906,0.31132911,590.81,589.84,1.25931413]
[1741156580110,0.33851257,590.82,589.84,1.25931413]
[1741156581715,0.33851257,590.82,589.74,1.25931413]
[1741156585013,0.33851257,590.82,589.72,1.25931413]
[1741156587919,0.33851257,590.82,589.9,1.25931413]
[1741156589318,0.33851257,590.82,589.88,1.25931413]
[1741156592520,0.33851257,590.82,589.9,1.25931413]
[1741156594316,0.3113106,590.81,589.9,1.25931413]
[1741156594919,0.3113106,590.81,589.98,1.25931413]
[1741156595216,0.33851257,590.82,589.98,1.25931413]
[1741156595622,0.31131191,590.81,589.98,1.25931413]
[1741156596422,0.31131191,590.81,589.87,1.25931413]
[1741156596821,0.33851257,590.82,589.87,1.25931413]
[1741156597018,0.31132793,590.81,589.87,1.25931413]
[1741156598723,0.31132793,590.81,589.84,1.25931413]
[1741156599724,0.33851257,590.82,589.84,1.25931413]
[1741156601124,0.33851257,590.82,589.8,1.25931413]
[1741156602724,0.33851257,590.82,589.48,1.25931413]
[1741156602924,0.33851257,590.82,589.49,0.33927632]
[1741156604625,0.33851257,590.82,589.5,1.76880948]
[1741156604926,0.33851257,590.82,589.51,0.33926481]
[1741156614732,0.33851257,590.82,589.82,1.25931413]
[1741156619834,0.33851257,590.82,589.86,1.25931413]
[1741156621736,0.33851257,590.82,589.95,1.25931413]
[1741156623840,0.33851257,590.82,590.11,1.25931413]
[1741156626643,0.33851257,590.82,589.88,1.76815043]
[1741156628341,0.33851257,590.82,589.54,1.25931413]
[1741156628839,0.33851257,590.82,589.56,1.25931413]
[1741156629439,0.33851257,590.82,589.58,0.33922453]
[1741156630845,0.33851257,590.82,589.63,1.25931413]
[1741156631040,0.33851257,590.82,589.64,0.33919001]
[1741156632145,0.33851257,590.82,589.98,1.25931413]
[1741156634345,0.33851257,590.82,590.11,1.25931413]
[1741156636150,0.33851257,590.82,589.97,1.25931413]
[1741156638450,0.33851257,590.82,590.0,1.25931413]
[1741156639847,0.33851257,590.82,590.02,1.25931413]
[1741156643848,0.33851257,590.82,590.12,1.25931413]
[1741156646456,0.33851257,590.82,589.81,1.76842747]
[1741156646457,0.33851257,590.82,590.14,1.25931413]
[1741156647951,0.33851257,590.82,590.17,1.25931413]
[1741156649660,0.33851257,590.82,590.18,1.25931413]
[1741156653057,0.33851257,590.82,590.21,1.25931413]
[1741156655056,0.33851257,590.82,590.13,1.25931413]
[1741156657270,0.33851257,590.82,590.01,1.25931413]
[1741156661458,0.33851257,590.82,590.03,1.25931413]
[1741156664267,0.33851257,590.82,589.91,1.25931413]
[1741156666365,0.33851257,590.82,590.22,1.25931413]
[1741156670872,0.33851257,590.82,590.23,1.25931413]
[1741156675581,0.96907526,591.15,590.26,1.25931413]
[1741156675773,0.33832932,591.14,590.26,1.25931413]
[1741156677584,0.33832932,591.14,590.07,1.25931413]
[1741156680489,0.33832932,591.14,590.04,1.25931413]
[1741156682094,0.33832932,591.14,590.05,1.25931413]
[1741156683394,0.31122268,591.13,590.05,1.25931413]
[1741156683697,0.33834077,591.12,590.05,1.25931413]
[1741156683997,0.31122268,591.11,590.05,1.25931413]
[1741156684591,0.31122268,591.11,590.23,1.25931413]
[1741156685998,0.33835222,591.1,590.23,1.25931413]
[1741156686197,0.31122268,591.09,590.23,1.25931413]
[1741156686494,0.33836367,591.08,590.23,1.25931413]
[1741156686793,0.31122268,591.07,590.23,1.25931413]
[1741156687098,0.33837512,591.06,590.24,1.25931413]
[1741156687299,0.31122268,591.05,590.24,1.25931413]
[1741156687501,0.33838657,591.04,590.24,1.25931413]
[1741156687697,0.31122268,591.03,590.24,1.25931413]
[1741156688799,0.33839802,591.02,590.24,1.25931413]
[1741156688992,0.31122268,591.01,590.24,1.25931413]
[1741156689191,0.31122268,591.01,590.01,1.25931413]
[1741156689494,0.33840947,591.0,590.01,1.25931413]
[1741156689697,0.31122268,590.99,590.01,1.25931413]
[1741156689893,0.33840947,591.0,590.01,1.25931413]
[1741156690098,0.31126412,590.99,590.01,1.25931413]
[1741156691795,0.33840947,591.0,589.99,1.25931413]
[1741156692000,0.31126899,590.99,589.99,1.25931413]
[1741156692995,0.31126899,590.99,590.0,1.76857726]
[1741156693505,0.31125722,590.98,590.0,3.02789139]
[1741156693700,0.31125722,590.99,590.0,3.02789139]
[1741156693899,0.31125722,590.98,590.0,3.02789139]
[1741156694099,0.31125722,590.97,590.0,3.02789139]
[1741156694295,0.31125722,590.96,590.0,3.02789139]
[1741156694498,0.31125722,590.95,590.0,1.25931413]
[1741156694692,0.33840947,591.0,590.0,1.25931413]
[1741156694693,0.31125722,590.99,590.0,3.0278839]
[1741156694999,0.31125722,590.98,590.0,3.0278839]
[1741156695203,0.31125722,590.99,590.01,1.25931413]
[1741156695394,0.31125722,590.98,590.01,1.25931413]
[1741156695595,0.31125722,590.99,590.01,1.25931413]
[1741156696904,0.33840947,591.0,590.01,1.25931413]
[1741156697104,0.31126848,590.99,590.01,1.25931413]
[1741156698001,0.31126848,590.99,590.0,3.0278839]
[1741156700205,0.31125131,590.98,590.18,1.25931413]
[1741156700406,0.31125131,590.99,590.18,1.25931413]
[1741156700604,0.31125131,590.98,590.18,1.25931413]
[1741156700811,0.33840947,591.0,590.18,1.25931413]
[1741156701108,0.31125502,590.99,590.18,1.25931413]
[1741156701909,0.33842092,590.98,590.18,1.25931413]
[1741156702111,0.31129073,590.97,590.18,1.25931413]
[1741156702511,0.31129073,590.97,588.85,1.66888379]
[1741156702512,0.31129073,590.97,590.13,1.25931413]
[1741156703705,0.33842092,590.98,590.13,1.25931413]
[1741156703911,0.3112852,590.97,590.13,1.25931413]
[1741156704607,0.3112852,590.97,590.01,1.25931413]
[1741156704812,0.33843238,590.96,590.01,1.25931413]
[1741156705005,0.3112852,590.95,590.01,1.25931413]
[1741156705207,0.6497233,590.95,590.01,1.25931413]
[1741156705411,0.3112852,590.94,590.01,1.25931413]
[1741156707514,0.3112852,590.94,589.96,1.76867464]
[1741156707515,0.3112852,590.94,589.96,3.02798877]
[1741156709514,0.3112852,590.94,589.96,1.25931413]
[1741156709714,0.3112852,590.94,589.96,3.02802622]
[1741156710016,0.3112852,590.94,589.96,1.76871209]
[1741156712517,0.3112852,590.94,590.02,1.25931413]
[1741156714120,0.31127753,590.93,590.02,1.25931413]
[1741156714320,0.31127753,590.92,590.02,1.25931413]
[1741156714520,0.31127753,590.91,590.02,1.25931413]
[1741156714821,0.31127753,590.9,590.06,1.25931413]
[1741156715627,0.31127753,590.94,590.06,1.25931413]
[1741156715818,0.31127753,590.93,590.06,1.25931413]
[1741156716019,0.31127753,590.92,590.06,1.25931413]
[1741156716315,0.3384381,590.95,590.06,1.25931413]
[1741156716316,0.31127753,590.91,590.06,1.25931413]
[1741156716520,0.31127753,590.94,590.06,1.25931413]
[1741156716718,0.31127753,590.93,590.06,1.25931413]
[1741156716917,0.31127753,590.94,590.13,1.25931413]
[1741156718226,0.64972136,590.94,590.13,1.25931413]
[1741156718428,0.64972709,590.93,590.13,1.25931413]
[1741156718632,0.64973282,590.92,590.13,1.25931413]
[1741156718926,0.31127753,590.91,590.13,1.25931413]
[1741156719126,0.31130371,590.9,590.1,1.25931413]
[1741156719328,0.31130371,590.89,590.1,1.25931413]
[1741156719528,0.33845529,590.92,590.1,1.25931413]
[1741156719529,0.31130371,590.91,590.1,1.25931413]
[1741156721033,0.31130371,590.91,590.09,1.25931413]
[1741156721529,0.31129979,590.9,590.09,1.25931413]
[1741156721723,0.31129979,590.91,590.09,1.25931413]
[1741156721927,0.31129979,590.9,590.09,1.25931413]
[1741156722128,0.31129979,590.89,590.09,1.25931413]
[1741156722328,0.31129979,590.91,590.09,1.25931413]
[1741156722529,0.33845529,590.92,590.09,1.25931413]
[1741156722728,0.31130128,590.91,590.09,1.25931413]
[1741156723433,0.31130128,590.91,590.04,1.25931413]
[1741156724232,0.31129979,590.9,590.04,1.25931413]
[1741156724430,0.31129979,590.91,590.04,1.25931413]
[1741156724734,0.31129979,590.9,590.04,1.25931413]
[1741156724933,0.31129979,590.89,590.04,1.25931413]
[1741156725234,0.31129979,590.88,590.04,1.25931413]
[1741156725431,0.31129979,590.87,590.04,1.25931413]
[1741156725631,0.31129979,590.86,590.04,1.25931413]
[1741156725828,0.33845529,590.92,590.04,1.25931413]
[1741156726033,0.31130351,590.91,590.04,1.25931413]
[1741156726228,0.31130351,590.91,590.15,1.25931413]
[1741156727735,0.31130566,590.9,590.15,1.25931413]
[1741156727931,0.33845529,590.92,590.15,1.25931413]
[1741156727932,0.31130566,590.89,590.15,1.25931413]
[1741156728133,0.31130566,590.88,590.15,1.25931413]
[1741156728331,0.31130566,590.87,590.15,1.25931413]
[1741156728535,0.31130566,590.91,590.15,1.25931413]
[1741156728834,0.6497724,590.9,590.15,1.25931413]
[1741156729030,0.31130566,590.89,590.15,1.25931413]
[1741156729232,0.3384782,590.88,590.15,1.25931413]
[1741156729532,0.31130566,590.87,590.15,1.25931413]
[1741156729735,0.33848965,590.86,590.15,1.25931413]
[1741156729929,0.31130566,590.85,590.15,1.25931413]
[1741156731036,0.64987306,590.84,590.0,1.25931413]
[1741156731238,0.31137195,590.83,590.0,1.25931413]
[1741156732932,0.649931,590.82,590.0,1.25931413]
[1741156733137,0.64993673,590.81,590.0,1.25931413]
[1741156733337,0.64994246,590.8,590.0,1.25931413]
[1741156733536,0.64994819,590.79,589.8,1.25931413]
[1741156733840,0.64995392,590.78,589.8,1.25931413]
[1741156734032,0.64995965,590.77,589.8,1.25931413]
[1741156734238,0.64996538,590.76,589.8,1.25931413]
[1741156734433,0.33855268,590.75,589.8,1.25931413]
[1741156734633,0.311417,590.74,589.8,1.25931413]
[1741156734838,0.33856414,590.73,589.8,1.25931413]
[1741156735041,0.311417,590.72,589.8,1.25931413]
[1741156735241,0.33857561,590.71,589.8,1.25931413]
[1741156735441,0.311417,590.7,589.8,1.25931413]
[1741156735640,0.33858707,590.69,589.8,1.25931413]
[1741156735939,0.311417,590.68,589.8,1.25931413]
[1741156736139,0.311417,590.68,589.74,1.25931413]
[1741156737640,0.33858707,590.69,589.74,1.25931413]
[1741156737834,0.31141904,590.68,589.74,1.25931413]
[1741156738037,0.31141904,590.68,589.73,1.76946153]
[1741156738634,0.33858707,590.69,589.73,1.76946153]
[1741156739540,0.33858707,590.69,589.69,1.25931413]
[1741156739742,0.33858707,590.69,589.28,1.25931413]
[1741156740641,0.33858707,590.69,589.65,1.76964899]
[1741156742442,0.33858707,590.69,589.28,1.25931413]
[1741156742835,0.33858707,590.69,589.65,1.7691317]
[1741156745540,0.33858707,590.69,589.3,1.25931413]
[1741156745737,0.33858707,590.69,589.65,1.76943904]
[1741156748536,0.31140825,590.68,589.29,1.25931413]
[1741156748735,0.31140825,590.68,589.65,1.76937906]
[1741156749941,0.33858707,590.69,589.65,1.76937906]
[1741156751543,0.33858707,590.69,589.6,1.25931413]
[1741156751943,0.33858707,590.69,589.65,1.76901179]
[1741156752745,0.31138962,590.68,589.65,1.76901179]
[1741156753246,0.31138962,590.68,589.79,1.25931413]
[1741156753439,0.33858707,590.69,589.79,1.25931413]
[1741156753645,0.31138829,590.68,589.79,1.25931413]
[1741156755942,0.31138829,590.68,589.82,1.25931413]
[1741156756141,0.33858707,590.69,589.82,1.25931413]
[1741156756346,0.31138072,590.68,589.82,1.25931413]
[1741156757142,0.33858707,590.69,589.82,1.25931413]
[1741156761051,0.33858707,590.69,589.86,1.25931413]
[1741156762860,0.33858707,590.69,589.88,1.25931413]
[1741156765054,0.33858707,590.69,589.8,1.27249495]
[1741156765055,0.33858707,590.69,590.0,1.25931413]
[1741156767861,0.33858707,590.69,590.02,1.25931413]
[1741156773266,0.33858707,590.69,589.99,1.25931413]
[1741156776661,0.33858707,590.69,589.88,1.25931413]
[1741156777666,1.66660351,591.08,589.88,1.25931413]
[1741156777868,1.97884878,591.24,589.88,1.25931413]
[1741156777869,0.31132224,591.07,589.88,1.25931413]
[1741156778068,0.31132224,591.06,589.88,1.25931413]
[1741156778262,1.97792575,591.21,589.88,1.25931413]
[1741156778467,0.31132224,591.2,589.88,1.25931413]
[1741156778763,0.31132224,591.19,589.88,1.25931413]
[1741156778964,0.31132224,591.18,589.88,1.25931413]
[1741156779268,3.43544173,591.2,590.04,1.25931413]
[1741156779269,0.31132224,591.17,590.04,1.25931413]
[1741156779466,0.31132224,591.16,590.04,1.25931413]
[1741156779667,0.31132224,591.15,590.04,1.25931413]
[1741156779868,0.31132224,591.14,590.04,1.25931413]
[1741156780168,0.3113198,591.13,590.04,1.25931413]
[1741156780470,0.3113198,591.12,590.04,1.25931413]
[1741156780667,0.3113198,591.11,590.04,1.25931413]
[1741156780966,0.3113198,591.1,590.04,1.25931413]
[1741156781163,0.3113198,591.09,590.04,1.25931413]
[1741156781366,0.3113198,591.08,590.04,1.25931413]
[1741156781564,2.87117042,591.13,590.04,1.25931413]
[1741156781767,1.76859973,591.07,590.04,1.25931413]
[1741156781964,0.31132185,591.06,590.04,1.25931413]
[1741156783271,5.20844895,591.06,590.04,1.25931413]
[1741156783466,4.49089722,591.05,590.04,1.25931413]
[1741156783670,4.49089722,591.04,590.04,1.25931413]
[1741156783871,1.97809643,591.03,590.04,1.25931413]
[1741156784067,0.31132185,591.02,590.05,1.25931413]
[1741156784471,2.48217953,591.02,590.05,1.25931413]
[1741156784766,1.27778369,591.01,590.05,1.25931413]
[1741156784963,0.31132185,591.0,590.05,1.25931413]
[1741156785170,0.31132185,590.99,590.05,1.25931413]
[1741156785369,0.31132185,590.98,590.05,1.25931413]
[1741156785566,0.31132185,591.01,590.05,1.25931413]
[1741156785866,0.96646184,591.03,590.05,1.25931413]
[1741156785867,0.31132185,591.0,590.05,1.25931413]
[1741156786166,0.31132185,590.99,590.05,1.25931413]
[1741156786371,0.31132185,590.98,590.05,1.25931413]
[1741156786573,1.66709801,591.16,590.05,1.25931413]
[1741156786868,0.31131894,591.15,590.05,1.25931413]
[1741156787069,0.31131894,591.14,590.05,1.25931413]
[1741156787375,0.31131894,591.13,590.05,1.25931413]
[1741156787671,0.31131894,591.12,590.05,1.25931413]
[1741156787872,0.31131894,591.11,590.05,1.25931413]
[1741156788074,0.31131894,591.1,590.05,1.25931413]
[1741156788274,0.31131894,591.09,590.05,1.25931413]
[1741156788674,0.31131894,591.08,590.05,1.25931413]
[1741156788874,0.31131894,591.07,590.06,1.25931413]
[1741156789076,0.31131894,591.08,590.06,1.25931413]
[1741156789278,0.31131894,591.07,590.06,1.25931413]
[1741156789475,0.31131894,591.06,590.06,1.25931413]
[1741156789675,0.31131894,591.08,590.06,1.25931413]
[1741156789876,4.49182347,591.08,590.06,1.25931413]
[1741156790076,1.97851384,591.07,590.06,1.25931413]
[1741156790270,0.31131894,591.06,590.06,1.25931413]
[1741156790472,1.27778078,591.06,590.06,1.25931413]
[1741156790675,0.31131894,591.05,590.11,1.25931413]
[1741156790976,0.31131894,591.04,590.11,1.25931413]
[1741156791175,0.31131894,591.05,590.11,1.25931413]
[1741156791375,0.31131894,591.04,590.11,1.25931413]
[1741156791577,0.31131894,591.05,590.11,1.25931413]
[1741156791777,0.31131894,591.04,590.11,1.25931413]
[1741156791977,0.31131894,591.03,590.11,1.25931413]
[1741156792177,0.31131894,591.02,590.11,1.25931413]
[1741156792377,0.31131894,591.01,590.11,1.25931413]
[1741156792574,0.31131894,591.0,590.11,1.25931413]
[1741156792873,2.5131743,591.25,590.06,1.25931413]
[1741156792874,0.31131894,590.99,590.06,1.25931413]
[1741156793078,0.31131894,590.98,590.06,1.25931413]
[1741156793279,0.31131894,590.97,590.06,1.25931413]
[1741156793479,2.87128419,591.22,590.06,1.25931413]
[1741156793682,0.31126814,590.96,590.06,1.25931413]
[1741156793874,0.31126814,590.95,590.06,1.25931413]
[1741156794179,0.31126814,590.94,590.06,1.25931413]
[1741156794374,0.31126814,590.93,590.06,1.25931413]
[1741156794577,0.31126814,590.92,590.06,1.25931413]
[1741156794773,0.31126814,590.91,590.06,1.25931413]
[1741156794975,2.63303265,591.16,590.06,1.25931413]
[1741156795178,1.2774108,591.15,590.06,1.25931413]
[1741156795374,0.3112665,591.14,590.06,1.25931413]
[1741156795574,1.2774108,591.14,590.06,1.25931413]
[1741156795778,0.3112665,591.13,590.06,1.25931413]
[1741156795979,0.3112665,591.12,590.06,1.25931413]
[1741156796176,0.3112665,591.11,590.06,1.25931413]
[1741156796379,0.3112665,591.1,590.06,1.25931413]
[1741156796575,1.97815485,591.35,590.06,1.25931413]
[1741156796778,4.17876511,591.35,590.06,1.25931413]
[1741156796981,0.3112634,591.34,589.97,1.25931413]
[1741156797282,0.3112634,591.33,589.97,1.25931413]
[1741156797583,0.3112634,591.32,589.97,1.25931413]
[1741156798283,4.48893153,591.32,589.97,1.25931413]
[1741156798482,1.97720736,591.31,589.97,1.25931413]
[1741156798679,0.3112634,591.3,589.97,1.25931413]
[1741156798879,1.97720736,591.3,589.97,1.25931413]
[1741156799083,0.3112634,591.29,590.01,1.25931413]
[1741156799793,4.48893153,591.29,590.01,1.25931413]
[1741156799976,1.97720736,591.28,590.01,1.25931413]
[1741156800176,0.3112634,591.27,590.01,1.25931413]
[1741156800777,4.48893153,591.27,590.01,1.25931413]
[1741156800981,4.48817998,591.26,590.01,1.25931413]
[1741156801177,4.48817998,591.25,590.01,1.25931413]
[1741156801377,4.48817998,591.24,590.01,1.25931413]
[1741156801682,5.69275922,591.23,590.01,1.25931413]
[1741156801983,4.48836338,591.22,590.01,1.25931413]
[1741156802184,1.97697818,591.21,590.01,1.25931413]
[1741156802485,0.31123602,591.2,590.21,1.25931413]
[1741156802979,0.31123602,591.36,590.21,1.25931413]
[1741156803279,3.83593668,591.37,590.21,1.25931413]
[1741156803481,4.48813153,591.36,590.21,1.25931413]
[1741156803682,3.18125485,591.35,590.21,1.25931413]
[1741156803878,2.82250807,591.34,590.21,1.25931413]
[1741156804183,1.97685901,591.33,590.21,1.25931413]
[1741156804483,0.31123555,591.32,590.21,1.25931413]
[1741156804684,0.31123555,591.31,590.21,1.25931413]
[1741156804877,0.31123555,591.3,590.2,1.25931413]
[1741156805075,4.17689598,591.32,590.2,1.25931413]
[1741156805076,0.31123555,591.29,590.2,1.25931413]
[1741156805281,0.31123555,591.28,590.2,1.25931413]
[1741156805478,0.31123555,591.27,590.2,1.25931413]
[1741156805682,0.33826066,591.26,590.2,1.25931413]